fUST/lending_fUST_20250828
["ID","MTS","AMOUNT","RATE_DAILY","PERIOD"]
[381708325,1756315912191,-1059.71,0.00023835,2]
[381708326,1756315912200,-480.0,0.00023835,2]
[381708327,1756315912210,-1042.56,0.00023835,2]
[381708328,1756315912219,-480.0,0.00023835,2]
[381708329,1756315912230,-669.54,0.00023835,2]
[381708330,1756315912239,-480.0,0.00023835,2]
[381708331,1756315912250,-480.0,0.00023835,2]
[381708332,1756315912260,-480.0,0.00023835,2]
[381708333,1756315912269,-480.0,0.00023835,2]
[381708334,1756315912279,-707.48,0.00023835,2]
[381708335,1756315912289,-550.53,0.00023835,2]
[381708336,1756315912299,-1356.93,0.00023835,2]
[381708337,1756315912309,-480.0,0.00023835,2]
[381708338,1756315912319,-754.65,0.00023835,2]
[381708339,1756315912330,-480.0,0.00023835,2]
[381708340,1756315912341,-480.0,0.00023835,2]
[381708341,1756315912351,-480.0,0.00023835,2]
[381708342,1756315912361,-480.0,0.00023835,2]
[381708343,1756315912370,-480.0,0.00023835,2]
[381708344,1756315912380,-833.89,0.00023835,2]
[381708345,1756315912390,-480.0,0.00023835,2]
[381708346,1756315912401,-1635.95,0.00023835,2]
[381708347,1756315912411,-616.04,0.00023835,2]
[381708348,1756315912422,-1308.59,0.00023835,2]
[381708349,1756315912431,-833.28,0.00023835,2]
[381708350,1756315912441,-480.0,0.00023835,2]
[381708351,1756315912450,-480.0,0.00023835,2]
[381708352,1756315912460,-1328.04,0.00023835,2]
[381708353,1756315912469,-480.0,0.00023835,2]
[381708354,1756315912479,-491.24,0.00023835,2]
[381708355,1756315912490,-6376.86,0.00023835,2]
[381708356,1756315912500,-480.0,0.00023835,2]
[381708357,1756315912510,-480.0,0.00023835,2]
[381708358,1756315912520,-1366.07,0.00023835,2]
[381708359,1756315912530,-480.0,0.00023835,2]
[381708360,1756315912539,-480.0,0.00023835,2]
[381708361,1756315912551,-811.3,0.00023835,2]
[381708362,1756315912565,-480.0,0.00023835,2]
[381708363,1756315912575,-1738.63,0.00023835,2]
[381708364,1756315912586,-480.0,0.00023835,2]
[381708365,1756315912600,-480.0,0.00023835,2]
[381708366,1756315912611,-1230.54,0.00023835,2]
[381708367,1756315912621,-597.4,0.00023835,2]
[381708368,1756315912631,-5290.09,0.00023835,2]
[381708369,1756315912642,-774.22,0.00023835,2]
[381708370,1756315912653,-681.82,0.00023835,2]
[381708371,1756315912664,-683.68,0.00023835,2]
[381708372,1756315912677,-864.24,0.00023835,2]
[381708373,1756315912688,-1277.71,0.00023835,2]
[381708374,1756315912698,-480.0,0.00023835,2]
[381708375,1756315912707,-1562.72,0.00023835,2]
[381708376,1756315912716,-480.0,0.00023835,2]
[381708377,1756315912727,-480.0,0.00023835,2]
[381708378,1756315912736,-480.0,0.00023835,2]
[381708379,1756315912747,-480.0,0.00023835,2]
[381708380,1756315912758,-480.0,0.00023835,2]
[381708381,1756315912769,-1230.71,0.00023835,2]
[381708382,1756315912780,-586.58,0.00023835,2]
[381708383,1756315912790,-480.0,0.00023835,2]
[381708384,1756315912800,-898.6,0.00023835,2]
[381708385,1756315912810,-480.0,0.00023835,2]
[381708386,1756315912819,-682.12,0.00023835,2]
[381708387,1756315912830,-480.0,0.00023835,2]
[381708388,1756315912840,-2720.08,0.00023835,2]
[381708389,1756315912850,-480.0,0.00023835,2]
[381708390,1756315912860,-480.0,0.00023835,2]
[381708391,1756315912870,-1400.27,0.00023835,2]
[381708392,1756315912879,-1633.28,0.00023835,2]
[381708393,1756315912889,-480.0,0.00023835,2]
[381708394,1756315912898,-984.77,0.00023835,2]
[381708395,1756315912909,-840.57,0.00023835,2]
[381708396,1756315912919,-480.0,0.00023835,2]
[381708397,1756315912929,-554.05,0.00023835,2]
[381708398,1756315912939,-1927.62,0.00023835,2]
[381708399,1756315912948,-2050.68,0.00023835,2]
[381708400,1756315912958,-480.0,0.00023835,2]
[381708401,1756315912967,-713.12,0.00023835,2]
[381708402,1756315912976,-480.0,0.00023835,2]
[381708403,1756315912987,-480.0,0.00023835,2]
[381708404,1756315912998,-793.66,0.00023835,2]
[381708405,1756315913007,-531.54,0.00023835,2]
[381708406,1756315913018,-480.0,0.00023835,2]
[381708407,1756315913027,-699.19,0.00023835,2]
[381708408,1756315913037,-480.0,0.00023835,2]
[381708409,1756315913047,-480.0,0.00023835,2]
[381708410,1756315913058,-480.0,0.00023835,2]
[381708411,1756315913068,-480.0,0.00023835,2]
[381708412,1756315913078,-525.84,0.00023835,2]
[381708413,1756315913087,-480.0,0.00023835,2]
[381708414,1756315913096,-708.0,0.00023835,2]
[381708415,1756315913106,-480.0,0.00023835,2]
[381708416,1756315913115,-4922.48,0.00023835,2]
[381708417,1756315913125,-1873.21,0.00023835,2]
[381708418,1756315913135,-480.0,0.00023835,2]
[381708419,1756315913145,-2273.72,0.00023835,2]
[381708420,1756315913154,-480.0,0.00023835,2]
[381708421,1756315913164,-542.01,0.00023835,2]
[381708422,1756315913174,-276.95067003,0.00023835,2]
[381708423,1756315913184,-480.0,0.00023835,2]
[381708424,1756315913193,-480.0,0.00023835,2]
[381708425,1756315913203,-480.0,0.00023835,2]
[381708426,1756315913213,-480.0,0.00023835,2]
[381708427,1756315913223,-620.03,0.00023835,2]
[381708428,1756315913232,-500.0,0.00023835,2]
[381708429,1756315913242,-480.0,0.00023835,2]
[381708430,1756315913251,-480.0,0.00023835,2]
[381708431,1756315913262,-3730.3,0.00023835,2]
[381708432,1756315913272,-480.0,0.00023835,2]
[381708433,1756315913282,-1757.83,0.00023835,2]
[381708434,1756315913292,-480.0,0.00023835,2]
[381708435,1756315913303,-480.0,0.00023835,2]
[381708436,1756315913313,-4335.47,0.00023835,2]
[381708437,1756315913324,-702.62,0.00023835,2]
[381708438,1756315913334,-653.99,0.00023835,2]
[381708439,1756315913345,-1061.58,0.00023835,2]
[381708440,1756315913355,-1127.47,0.00023835,2]
[381708441,1756315913366,-480.93,0.00023835,2]
[381708442,1756315913376,-4789.45,0.00023835,2]
[381708443,1756315913386,-480.0,0.00023835,2]
[381708444,1756315913396,-1335.71,0.00023835,2]
[381708445,1756315913406,-2106.23,0.00023835,2]
[381708446,1756315913416,-480.0,0.00023835,2]
[381708447,1756315913426,-480.0,0.00023835,2]
[381708448,1756315913436,-4610.0,0.00023835,2]
[381708449,1756315913445,-480.0,0.00023835,2]
[381708450,1756315913456,-480.0,0.00023835,2]
[381708451,1756315913465,-594.54,0.00023835,2]
[381708452,1756315913475,-1891.73,0.00023835,2]
[381708453,1756315913485,-480.0,0.00023835,2]
[381708454,1756315913495,-480.0,0.00023835,2]
[381708455,1756315913504,-1424.24,0.00023835,2]
[381708456,1756315913514,-490.12,0.00023835,2]
[381708457,1756315913523,-2437.05,0.00023835,2]
[381708458,1756315913533,-480.0,0.00023835,2]
[381708459,1756315913542,-480.0,0.00023835,2]
[381708460,1756315913552,-480.0,0.00023835,2]
[381708461,1756315913562,-480.0,0.00023835,2]
[381708462,1756315913572,-480.0,0.00023835,2]
[381708463,1756315913581,-632.92,0.00023835,2]
[381708464,1756315913592,-480.0,0.00023835,2]
[381708465,1756315913605,-562.31,0.00023835,2]
[381708466,1756315913614,-1677.51,0.00023835,2]
[381708467,1756315913624,-480.0,0.00023835,2]
[381708468,1756315913634,-523.31,0.00023835,2]
[381708469,1756315913643,-532.28,0.00023835,2]
[381708470,1756315913652,-480.0,0.00023835,2]
[381708471,1756315913662,-500.19,0.00023835,2]
[381708472,1756315913672,-480.0,0.00023835,2]
[381708473,1756315913683,-505.61,0.00023835,2]
[381708474,1756315913693,-593.0,0.00023835,2]
[381708475,1756315913703,-874.64,0.00023835,2]
[381708476,1756315913712,-2955.96,0.00023835,2]
[381708477,1756315913721,-480.0,0.00023835,2]
[381708478,1756315913731,-480.0,0.00023835,2]
[381708479,1756315913740,-480.0,0.00023835,2]
[381708480,1756315913750,-525.49,0.00023835,2]
[381708481,1756315913760,-480.0,0.00023835,2]
[381708482,1756315913770,-542.14,0.00023835,2]
[381708483,1756315913780,-1307.67,0.00023835,2]
[381708484,1756315913789,-487.85,0.00023835,2]
[381708485,1756315913800,-3139.91,0.00023835,2]
[381708486,1756315913810,-480.0,0.00023835,2]
[381708487,1756315913821,-790.4,0.00023835,2]
[381708488,1756315913831,-673.27,0.00023835,2]
[381708489,1756315913842,-480.0,0.00023835,2]
[381708490,1756315913857,-480.0,0.00023835,2]
[381708491,1756315913867,-490.27,0.00023835,2]
[381708492,1756315913877,-1507.95,0.00023835,2]
[381708493,1756315913887,-704.88,0.00023835,2]
[381708494,1756315913900,-480.0,0.00023835,2]
[381708495,1756315913910,-504.58,0.00023835,2]
[381708496,1756315913920,-1155.37,0.00023835,2]
[381708497,1756315913929,-1488.87,0.00023835,2]
[381708498,1756315913939,-1124.84,0.00023835,2]
[381708499,1756315913948,-480.0,0.00023835,2]
[381708500,1756315913958,-480.0,0.00023835,2]
[381708501,1756315913967,-480.0,0.00023835,2]
[381708502,1756315913976,-3001.81,0.00023835,2]
[381708503,1756315913985,-480.0,0.00023835,2]
[381708504,1756315913994,-852.13,0.00023835,2]
[381708505,1756315914004,-808.37,0.00023835,2]
[381708506,1756315914015,-480.0,0.00023835,2]
[381708507,1756315914025,-480.0,0.00023835,2]
[381708508,1756315914035,-845.32,0.00023835,2]
[381708509,1756315914045,-1712.6,0.00023835,2]
[381708510,1756315914054,-1056.32,0.00023835,2]
[381708511,1756315914064,-1736.27,0.00023835,2]
[381708512,1756315914074,-904.87,0.00023835,2]
[381708513,1756315914083,-480.0,0.00023835,2]
[381708514,1756315914093,-480.0,0.00023835,2]
[381708515,1756315914109,-809.45,0.00023835,2]
[381708516,1756315914119,-480.0,0.00023835,2]
[381708517,1756315914129,-481.5433723,0.00023835,2]
[381708518,1756315914138,-480.0,0.00023835,2]
[381708519,1756315914148,-1631.08,0.00023835,2]
[381708520,1756315914158,-480.0,0.00023835,2]
[381708521,1756315914168,-480.0,0.00023835,2]
[381708522,1756315914178,-1112.0,0.00023839,2]
[381708523,1756315914187,-168.0,0.000239,2]
[381708524,1756315914197,-2155.34950298,0.00024,60]
[381708525,1756315914206,-183.42044933,0.00024,7]
[381708526,1756315914216,-2000.0,0.00024,30]
[381708527,1756315914225,-160.0,0.00024,7]
[381708528,1756315914235,-845.298898,0.00024,7]
[381708529,1756315914245,-160.0,0.00024,7]
[381708530,1756315914256,-160.0,0.00024,7]
[381708531,1756315914265,-217.23771399,0.00024,7]
[381708532,1756315914274,-232.59867797,0.00024,7]
[381708533,1756315914284,-160.0,0.00024,7]
[381708534,1756315914294,-160.0,0.00024,7]
[381708535,1756315914303,-216.14835892,0.00024,3]
[381708536,1756315914313,-160.0,0.00024,7]
[381708537,1756315914322,-241.89941846,0.00024064,2]
[381708538,1756315914332,-480.0,0.00024109,2]
[381708539,1756315914341,-487.24,0.00024109,2]
[381708540,1756315914354,-521.13,0.00024109,2]
[381708541,1756315914364,-754.55,0.00024109,2]
[381708542,1756315914374,-480.0,0.00024109,2]
[381708543,1756315914383,-480.0,0.00024109,2]
[381708544,1756315914392,-482.32975304,0.00024109,2]
[381708545,1756315914401,-480.0,0.00024109,2]
[381708546,1756315914411,-480.0,0.00024109,2]
[381708547,1756315914420,-480.0,0.00024109,2]
[381708548,1756315914430,-480.0,0.00024109,2]
[381708549,1756315914439,-1012.65,0.00024109,2]
[381708550,1756315914449,-480.0,0.00024109,2]
[381708551,1756315914458,-499.63,0.00024109,2]
[381708552,1756315914467,-480.0,0.00024109,2]
[381708553,1756315914477,-480.0,0.00024109,2]
[381708554,1756315914486,-480.0,0.00024109,2]
[381708555,1756315914496,-480.0,0.00024109,2]
[381708556,1756315914574,-480.0,0.00024109,2]
[381708557,1756315914583,-538.35907122,0.00024109,2]
[381708558,1756315914593,-734.05,0.00024109,2]
[381708559,1756315914608,-487.48,0.00024109,2]
[381708560,1756315914617,-480.0,0.00024109,2]
[381708561,1756315914626,-480.0,0.00024109,2]
[381708562,1756315914636,-861.84,0.00024109,2]
[381708563,1756315914646,-521.2929728,0.00024109,2]
[381708564,1756315914656,-480.0,0.00024109,2]
[381708565,1756315914665,-480.0,0.00024109,2]
[381708566,1756315914675,-480.0,0.00024109,2]
[381708567,1756315914684,-480.0,0.00024109,2]
[381708568,1756315914694,-480.0,0.00024109,2]
[381708569,1756315914704,-1003.54,0.00024109,2]
[381708570,1756315914713,-480.0,0.00024109,2]
[381708571,1756315914723,-480.0,0.00024109,2]
[381708572,1756315914732,-480.0,0.00024109,2]
[381708573,1756315914741,-480.0,0.00024109,2]
[381708574,1756315914750,-547.19,0.00024109,2]
[381708575,1756315914759,-591.49,0.00024109,2]
[381708576,1756315914768,-480.0,0.00024109,2]
[381708577,1756315914777,-480.0,0.00024109,2]
[381708578,1756315914786,-480.0,0.00024109,2]
[381708579,1756315914796,-480.0,0.00024109,2]
[381708580,1756315914805,-480.0,0.00024109,2]
[381708581,1756315914814,-480.0,0.00024109,2]
[381708582,1756315914823,-480.0,0.00024109,2]
[381708583,1756315914832,-480.0,0.00024109,2]
[381708584,1756315914842,-501.98,0.00024109,2]
[381708585,1756315914851,-480.0,0.00024109,2]
[381708586,1756315914860,-480.0,0.00024109,2]
[381708587,1756315914870,-480.0,0.00024109,2]
[381708588,1756315914879,-653.06,0.00024109,2]
[381708589,1756315914889,-532.33,0.00024109,2]
[381708590,1756315914898,-480.0,0.00024109,2]
[381708591,1756315914907,-480.0,0.00024109,2]
[381708592,1756315914917,-192.67425675,0.00024109,2]
[381708593,1756315914926,-480.0,0.00024109,2]
[381708594,1756315914935,-480.0,0.00024109,2]
[381708595,1756315914944,-480.0,0.00024109,2]
[381708596,1756315914954,-480.0,0.00024109,2]
[381708597,1756315914963,-480.0,0.00024109,2]
[381708598,1756315914972,-480.0,0.00024109,2]
[381708599,1756315914982,-480.0,0.00024109,2]
[381708600,1756315914992,-480.0,0.00024109,2]
[381708601,1756315915001,-480.0,0.00024109,2]
[381708602,1756315915010,-521.62,0.00024109,2]
[381708603,1756315915019,-553.62,0.00024109,2]
[381708604,1756315915028,-480.0,0.00024109,2]
[381708605,1756315915037,-480.0,0.00024109,2]
[381708606,1756315915047,-633.41,0.00024109,2]
[381708607,1756315915057,-480.0,0.00024109,2]
[381708608,1756315915067,-480.0,0.00024109,2]
[381708609,1756315915076,-480.0,0.00024109,2]
[381708610,1756315915086,-480.0,0.00024109,2]
[381708611,1756315915095,-480.84,0.00024109,2]
[381708612,1756315915105,-480.0,0.00024109,2]
[381708613,1756315915114,-480.0,0.00024109,2]
[381708614,1756315915124,-647.08,0.00024109,2]
[381708615,1756315915134,-559.93,0.00024109,2]
[381708616,1756315915143,-480.0,0.00024109,2]
[381708617,1756315915152,-480.0,0.00024109,2]
[381708618,1756315915162,-480.0,0.00024109,2]
[381708619,1756315915172,-480.0,0.00024109,2]
[381708620,1756315915181,-609.46,0.00024109,2]
[381708621,1756315915190,-480.0,0.00024109,2]
[381708622,1756315915199,-480.0,0.00024109,2]
[381708623,1756315915208,-480.0,0.00024109,2]
[381708624,1756315915217,-480.0,0.00024109,2]
[381708625,1756315915226,-555.02,0.00024109,2]
[381708626,1756315915235,-480.0,0.00024109,2]
[381708627,1756315915245,-480.0,0.00024109,2]
[381708628,1756315915254,-660.92,0.00024109,2]
[381708629,1756315915263,-569.18,0.00024109,2]
[381708630,1756315915272,-1003.81,0.00024109,2]
[381708631,1756315915281,-680.33,0.00024109,2]
[381708632,1756315915290,-480.0,0.00024109,2]
[381708633,1756315915300,-480.0,0.00024109,2]
[381708634,1756315915309,-480.0,0.00024109,2]
[381708635,1756315915320,-681.56,0.00024109,2]
[381708636,1756315915330,-480.0,0.00024109,2]
[381708637,1756315915340,-480.0,0.00024109,2]
[381708638,1756315915350,-480.0,0.00024109,2]
[381708639,1756315915359,-480.0,0.00024109,2]
[381708640,1756315915368,-480.0,0.00024109,2]
[381708641,1756315915377,-480.0,0.00024109,2]
[381708642,1756315915386,-480.0,0.00024109,2]
[381708643,1756315915397,-1465.34,0.00024109,2]
[381708644,1756315915406,-480.0,0.00024109,2]
[381708645,1756315915415,-480.0,0.00024109,2]
[381708646,1756315915424,-480.0,0.00024109,2]
[381708647,1756315915433,-544.04,0.00024109,2]
[381708648,1756315915443,-571.38566776,0.00024109,2]
[381708649,1756315915452,-480.0,0.00024109,2]
[381708650,1756315915462,-1039.38,0.00024109,2]
[381708651,1756315915471,-480.0,0.00024109,2]
[381708652,1756315915481,-531.56,0.00024109,2]
[381708653,1756315915491,-1343.03,0.00024109,2]
[381708654,1756315915500,-480.0,0.00024109,2]
[381708655,1756315915510,-480.0,0.00024109,2]
[381708656,1756315915519,-480.0,0.00024109,2]
[381708657,1756315915528,-500.0,0.00024109,2]
[381708658,1756315915538,-266.71,0.00024109,2]
[381708659,1756315915547,-480.0,0.00024109,2]
[381708660,1756315915556,-614.45,0.00024109,2]
[381708661,1756315915565,-480.0,0.00024109,2]
[381708662,1756315915575,-480.0,0.00024109,2]
[381708663,1756315915584,-480.0,0.00024109,2]
[381708664,1756315915593,-480.0,0.00024109,2]
[381708665,1756315915607,-760.2,0.00024109,2]
[381708666,1756315915616,-530.93,0.00024109,2]
[381708667,1756315915626,-1064.0,0.00024109,2]
[381708668,1756315915635,-480.0,0.00024109,2]
[381708669,1756315915645,-480.0,0.00024109,2]
[381708670,1756315915654,-480.0,0.00024109,2]
[381708671,1756315915664,-480.0,0.00024109,2]
[381708672,1756315915673,-480.0,0.00024109,2]
[381708673,1756315915682,-480.0,0.00024109,2]
[381708674,1756315915692,-505.17,0.00024109,2]
[381708675,1756315915701,-892.04,0.00024109,2]
[381708676,1756315915711,-662.34,0.00024109,2]
[381708677,1756315915720,-480.0,0.00024109,2]
[381708678,1756315915730,-480.0,0.00024109,2]
[381708679,1756315915739,-480.0,0.00024109,2]
[381708680,1756315915750,-480.0,0.00024109,2]
[381708681,1756315915760,-480.0,0.00024109,2]
[381708682,1756315915769,-480.0,0.00024109,2]
[381708683,1756315915779,-1566.48,0.00024109,2]
[381708684,1756315915790,-480.0,0.00024109,2]
[381708685,1756315915800,-480.0,0.00024109,2]
[381708686,1756315915810,-480.0,0.00024109,2]
[381708687,1756315915820,-480.0,0.00024109,2]
[381708688,1756315915831,-703.96,0.00024109,2]
[381708689,1756315915840,-480.0,0.00024109,2]
[381708690,1756315915851,-480.0,0.00024109,2]
[381708691,1756315915860,-480.0,0.00024109,2]
[381708692,1756315915870,-480.0,0.00024109,2]
[381708693,1756315915879,-717.25,0.00024109,2]
[381708694,1756315915888,-480.0,0.00024109,2]
[381708695,1756315915899,-480.0,0.00024109,2]
[381708696,1756315915909,-271.83694092,0.00024109,2]
[381708697,1756315915918,-766.14,0.00024109,2]
[381708698,1756315915928,-1026.52,0.00024109,2]
[381708699,1756315915938,-480.0,0.00024109,2]
[381708700,1756315915948,-480.0,0.00024109,2]
[381708701,1756315915957,-480.0,0.00024109,2]
[381708702,1756315915967,-897.12,0.00024109,2]
[381708703,1756315915977,-480.0,0.00024109,2]
[381708704,1756315915986,-480.0,0.00024109,2]
[381708705,1756315915997,-480.0,0.00024109,2]
[381708706,1756315916008,-496.15,0.00024109,2]
[381708707,1756315916018,-480.0,0.00024109,2]
[381708708,1756315916028,-480.0,0.00024109,2]
[381708709,1756315916040,-839.95,0.00024109,2]
[381708710,1756315916051,-480.0,0.00024109,2]
[381708711,1756315916061,-510.18,0.00024109,2]
[381708712,1756315916071,-480.0,0.00024109,2]
[381708713,1756315916082,-4321.67,0.00024109,2]
[381708714,1756315916091,-480.0,0.00024109,2]
[381708715,1756315916102,-748.41,0.00024109,2]
[381708716,1756315916112,-480.0,0.00024109,2]
[381708717,1756315916121,-530.0,0.00024109,2]
[381708718,1756315916131,-480.0,0.00024109,2]
[381708719,1756315916141,-480.0,0.00024109,2]
[381708720,1756315916150,-497.55,0.00024109,2]
[381708721,1756315916160,-487.03,0.00024109,2]
[381708722,1756315916170,-831.39,0.00024109,2]
[381708723,1756315916179,-480.0,0.00024109,2]
[381708724,1756315916189,-480.0,0.00024109,2]
[381708725,1756315916199,-480.0,0.00024109,2]
[381708726,1756315916208,-524.19,0.00024109,2]
[381708727,1756315916218,-480.0,0.00024109,2]
[381708728,1756315916228,-1177.95,0.00024109,2]
[381708729,1756315916237,-480.0,0.00024109,2]
[381708730,1756315916247,-480.0,0.00024109,2]
[381708731,1756315916257,-480.0,0.00024109,2]
[381708732,1756315916267,-480.0,0.00024109,2]
[381708733,1756315916278,-480.0,0.00024109,2]
[381708734,1756315916287,-535.15968138,0.00024109,2]
[381708735,1756315916298,-480.0,0.00024109,2]
[381708736,1756315916307,-612.8,0.00024109,2]
[381708737,1756315916317,-188.37847976,0.00024109,2]
[381708738,1756315916327,-1709.99,0.00024109,2]
[381708739,1756315916338,-588.21,0.00024109,2]
[381708740,1756315916350,-480.0,0.00024109,2]
[381708741,1756315916359,-532.52,0.00024109,2]
[381708742,1756315916368,-480.0,0.00024109,2]
[381708743,1756315916378,-580.60455557,0.00024109,2]
[381708744,1756315916388,-480.0,0.00024109,2]
[381708745,1756315916398,-480.0,0.00024109,2]
[381708746,1756315916409,-907.14,0.00024109,2]
[381708747,1756315916419,-1087.58,0.00024109,2]
[381708748,1756315916430,-480.0,0.00024109,2]
[381708749,1756315916439,-615.39,0.00024109,2]
[381708750,1756315916450,-480.0,0.00024109,2]
[381708751,1756315916460,-480.0,0.00024109,2]
[381708752,1756315916469,-822.31,0.00024109,2]
[381708753,1756315916479,-501.15,0.00024109,2]
[381708754,1756315916489,-480.0,0.00024109,2]
[381708755,1756315916499,-480.0,0.00024109,2]
[381708756,1756315916510,-480.0,0.00024109,2]
[381708757,1756315916520,-480.0,0.00024109,2]
[381708758,1756315916530,-480.0,0.00024109,2]
[381708759,1756315916541,-480.0,0.00024109,2]
[381708760,1756315916551,-480.0,0.00024109,2]
[381708761,1756315916562,-513.13,0.00024109,2]
[381708762,1756315916572,-480.0,0.00024109,2]
[381708763,1756315916582,-7578.13,0.00024109,2]
[381708764,1756315916592,-767.09,0.00024109,2]
[381708765,1756315916606,-480.0,0.00024109,2]
[381708766,1756315916616,-1421.98,0.00024109,2]
[381708767,1756315916627,-480.0,0.00024109,2]
[381708768,1756315916637,-480.0,0.00024109,2]
[381708769,1756315916648,-480.0,0.00024109,2]
[381708770,1756315916658,-480.0,0.00024109,2]
[381708771,1756315916668,-480.0,0.00024109,2]
[381708772,1756315916679,-564.27,0.00024109,2]
[381708773,1756315916690,-480.0,0.00024109,2]
[381708774,1756315916700,-480.0,0.00024109,2]
[381708775,1756315916710,-505.59557552,0.00024109,2]
[381708776,1756315916720,-480.0,0.00024109,2]
[381708777,1756315916730,-480.0,0.00024109,2]
[381708778,1756315916739,-545.55,0.00024109,2]
[381708779,1756315916749,-480.0,0.00024109,2]
[381708780,1756315916759,-480.0,0.00024109,2]
[381708781,1756315916769,-480.0,0.00024109,2]
[381708782,1756315916780,-480.0,0.00024109,2]
[381708783,1756315916790,-1006.49,0.00024109,2]
[381708784,1756315916800,-480.0,0.00024109,2]
[381708785,1756315916810,-480.0,0.00024109,2]
[381708786,1756315916820,-480.0,0.00024109,2]
[381708787,1756315916830,-480.0,0.00024109,2]
[381708788,1756315916840,-480.0,0.00024109,2]
[381708789,1756315916851,-480.0,0.00024109,2]
[381708790,1756315916861,-602.91,0.00024109,2]
[381708791,1756315916871,-480.0,0.00024109,2]
[381708792,1756315916881,-596.82,0.00024109,2]
[381708793,1756315916891,-480.0,0.00024109,2]
[381708794,1756315916901,-575.39,0.00024109,2]
[381708795,1756315916911,-480.0,0.00024109,2]
[381708796,1756315916921,-490.63944421,0.00024109,2]
[381708797,1756315916932,-183.86490707,0.00024109,2]
[381708798,1756315916943,-506.47,0.00024109,2]
[381708799,1756315916953,-480.0,0.00024109,2]
[381708800,1756315916963,-635.3,0.00024109,2]
[381708801,1756315916972,-984.43,0.00024109,2]
[381708802,1756315916982,-1605.48,0.00024109,2]
[381708803,1756315916992,-480.0,0.00024109,2]
[381708804,1756315917002,-496.43,0.00024109,2]
[381708805,1756315917012,-480.0,0.00024109,2]
[381708806,1756315917023,-480.0,0.00024109,2]
[381708807,1756315917035,-708.97,0.00024109,2]
[381708808,1756315917044,-480.0,0.00024109,2]
[381708809,1756315917055,-480.0,0.00024109,2]
[381708810,1756315917064,-480.0,0.00024109,2]
[381708811,1756315917074,-480.0,0.00024109,2]
[381708812,1756315917084,-480.0,0.00024109,2]
[381708813,1756315917094,-517.74,0.00024109,2]
[381708814,1756315917105,-480.0,0.00024109,2]
[381708815,1756315917114,-212.61152434,0.00024109,2]
[381708816,1756315917125,-480.0,0.00024109,2]
[381708817,1756315917136,-636.21,0.00024109,2]
[381708818,1756315917145,-480.0,0.00024109,2]
[381708819,1756315917155,-735.93,0.00024109,2]
[381708820,1756315917166,-480.0,0.00024109,2]
[381708821,1756315917176,-480.0,0.00024109,2]
[381708822,1756315917186,-551.29,0.00024109,2]
[381708823,1756315917196,-530.01,0.00024109,2]
[381708824,1756315917206,-480.0,0.00024109,2]